[Event "Titled Tuesday Blitz March 28 Late 2023"]
[White "Bortnyk, Olexandr"]
[Black "Anton Guijarro, David"]
[WhiteFideId "14120828"]
[BlackFideId "2285525"]
[WhiteElo "2734"]
[BlackElo "2618"]
[Result "1-0"]
[Round "05"]
[TimeControl "180+2"]
[Date "2023.03.28"]
[WhiteClock "0:00:07"]
[BlackClock "0:00:07"]

1. d4 {[%clk 0:03:00]}  Nf6 {[%clk 0:02:59]} 2. Nc3 {[%clk 0:03:01]}  d5 {[%clk 0:02:59]} 3. Bf4 {[%clk 0:03:01]}  e6 {[%clk 0:02:57]} 4. Nb5 {[%clk 0:03:01]}  Bb4+ {[%clk 0:02:55]} 5. c3 {[%clk 0:03:00]}  Ba5 {[%clk 0:02:45]} 6. a4 {[%clk 0:03:01]}  a6 {[%clk 0:02:46]} 7. b4 {[%clk 0:03:01]}  Bxb4 {[%clk 0:02:46]} 8. cxb4 {[%clk 0:03:00]}  axb5 {[%clk 0:02:46]} 9. axb5 {[%clk 0:03:01]}  Rxa1 {[%clk 0:02:46]} 10. Qxa1 {[%clk 0:03:02]}  Nh5 {[%clk 0:02:41]} 11. Be5 {[%clk 0:02:58]}  Nd7 {[%clk 0:02:38]} 12. e3 {[%clk 0:02:55]}  O-O {[%clk 0:02:35]} 13. h4 {[%clk 0:02:54]}  Nhf6 {[%clk 0:02:26]} 14. Bh2 {[%clk 0:02:38]}  Ne4 {[%clk 0:02:23]} 15. Nf3 {[%clk 0:02:38]}  Nb6 {[%clk 0:02:19]} 16. Bd3 {[%clk 0:02:34]}  Bd7 {[%clk 0:02:15]} 17. O-O {[%clk 0:02:31]}  Nc4 {[%clk 0:02:02]} 18. Bxc4 {[%clk 0:02:17]}  dxc4 {[%clk 0:02:02]} 19. Qa5 {[%clk 0:02:18]}  b6 {[%clk 0:01:58]} 20. Qa7 {[%clk 0:02:18]}  Qb8 {[%clk 0:01:41]} 21. Qxc7 {[%clk 0:02:09]}  Qxc7 {[%clk 0:01:40]} 22. Bxc7 {[%clk 0:02:10]}  Ra8 {[%clk 0:01:32]} 23. Bxb6 {[%clk 0:02:10]}  Ra2 {[%clk 0:01:30]} 24. d5 {[%clk 0:02:03]}  c3 {[%clk 0:01:16]} 25. d6 {[%clk 0:01:38]}  Nxd6 {[%clk 0:01:09]} 26. Rc1 {[%clk 0:01:27]}  Nxb5 {[%clk 0:01:06]} 27. Nd4 {[%clk 0:01:17]}  Nxd4 {[%clk 0:00:59]} 28. Bxd4 {[%clk 0:01:18]}  c2 {[%clk 0:00:59]} 29. Kf1 {[%clk 0:01:18]}  f6 {[%clk 0:00:39]} 30. Ke2 {[%clk 0:01:18]}  e5 {[%clk 0:00:37]} 31. Bc5 {[%clk 0:01:17]}  Ba4 {[%clk 0:00:20]} 32. Kd3 {[%clk 0:01:07]}  Rb2 {[%clk 0:00:20]} 33. f3 {[%clk 0:00:47]}  Kf7 {[%clk 0:00:20]} 34. h5 {[%clk 0:00:46]}  g6 {[%clk 0:00:20]} 35. hxg6+ {[%clk 0:00:47]}  hxg6 {[%clk 0:00:21]} 36. e4 {[%clk 0:00:39]}  Ke6 {[%clk 0:00:21]} 37. Kc3 {[%clk 0:00:38]}  Rb1 {[%clk 0:00:21]} 38. Be3 {[%clk 0:00:38]}  f5 {[%clk 0:00:21]} 39. Kc4 {[%clk 0:00:25]}  fxe4 {[%clk 0:00:15]} 40. fxe4 {[%clk 0:00:26]}  Kd6 {[%clk 0:00:15]} 41. Bd2 {[%clk 0:00:20]}  Kc6 {[%clk 0:00:14]} 42. Bh6 {[%clk 0:00:14]}  Bb5+ {[%clk 0:00:10]} 43. Kc3 {[%clk 0:00:13]}  Ba4 {[%clk 0:00:10]} 44. Kc4 {[%clk 0:00:13]}  Rb2 {[%clk 0:00:10]} 45. Bg7 {[%clk 0:00:07]}  Kd6 {[%clk 0:00:09]} 46. Bf8+ {[%clk 0:00:06]}  Ke6 {[%clk 0:00:09]} 47. Bh6 {[%clk 0:00:07]}  Ra2 {[%clk 0:00:08]} 48. Rf1 {[%clk 0:00:02]}  Ra3 {[%clk 0:00:06]} 49. Bc1 {[%clk 0:00:03]}  Rb3 {[%clk 0:00:05]} 50. Bg5 {[%clk 0:00:02]}  Rb1 {[%clk 0:00:04]} 51. Bc1 {[%clk 0:00:03]}  Bc6 {[%clk 0:00:04]} 52. Kc3 {[%clk 0:00:01]}  Bxe4 {[%clk 0:00:04]} 53. Re1 {[%clk 0:00:02]}  Kd5 {[%clk 0:00:04]} 54. g4 {[%clk 0:00:01]}  g5 {[%clk 0:00:03]} 55. b5 {[%clk 0:00:01]}  Rxb5 {[%clk 0:00:01]} 56. Bxg5 {[%clk 0:00:02]}  Rc5+ {[%clk 0:00:02]} 57. Kb2 {[%clk 0:00:02]}  Rb5+ {[%clk 0:00:02]} 58. Kc3 {[%clk 0:00:03]}  Rb1 {[%clk 0:00:03]} 59. Rc1 {[%clk 0:00:02]}  Bg6 {[%clk 0:00:03]} 60. Kd2 {[%clk 0:00:03]}  Rb2 {[%clk 0:00:03]} 61. Bf6 {[%clk 0:00:02]}  Rb1 {[%clk 0:00:03]} 62. Bg5 {[%clk 0:00:03]}  Kd4 {[%clk 0:00:03]} 63. Be3+ {[%clk 0:00:02]}  Kc4 {[%clk 0:00:02]} 64. Bg5 {[%clk 0:00:03]}  Bd3 {[%clk 0:00:02]} 65. Re1 {[%clk 0:00:02]}  e4 {[%clk 0:00:01]} 66. Rc1 {[%clk 0:00:02]}  Kd5 {[%clk 0:00:01]} 67. Be3 {[%clk 0:00:02]}  Ke5 {[%clk 0:00:02]} 68. g5 {[%clk 0:00:03]}  Kf5 {[%clk 0:00:02]} 69. Kc3 {[%clk 0:00:03]}  Rb7 {[%clk 0:00:01]} 70. Kd2 {[%clk 0:00:03]}  Rc7 {[%clk 0:00:01]} 71. Rg1 {[%clk 0:00:03]}  Kg6 {[%clk 0:00:01]} 72. Rh1 {[%clk 0:00:03]}  Rd7 {[%clk 0:00:02]} 73. Rh6+ {[%clk 0:00:03]}  Kg7 {[%clk 0:00:02]} 74. Kc1 {[%clk 0:00:04]}  Rb7 {[%clk 0:00:03]} 75. Bd4+ {[%clk 0:00:04]}  Kg8 {[%clk 0:00:02]} 76. Rh8+ {[%clk 0:00:05]}  Kf7 {[%clk 0:00:02]} 77. Rh7+ {[%clk 0:00:06]}  Kg6 {[%clk 0:00:02]} 78. Rxb7 {[%clk 0:00:06]}  Kxg5 {[%clk 0:00:03]} 79. Be3+ {[%clk 0:00:07]}  Kg4 {[%clk 0:00:03]} 80. Kd2 {[%clk 0:00:07]}  Kf3 {[%clk 0:00:04]} 81. Rf7+ {[%clk 0:00:07]}  Kg3 {[%clk 0:00:04]} 82. Ke1 {[%clk 0:00:06]}  Kg4 {[%clk 0:00:04]} 83. Rf4+ {[%clk 0:00:06]}  Kg3 {[%clk 0:00:04]} 84. Rf8 {[%clk 0:00:06]}  Kg2 {[%clk 0:00:05]} 85. Bc1 {[%clk 0:00:05]}  Kg3 {[%clk 0:00:05]} 86. Kd2 {[%clk 0:00:05]}  Kg4 {[%clk 0:00:05]} 87. Ke3 {[%clk 0:00:06]}  Kg5 {[%clk 0:00:05]} 88. Kf2+ {[%clk 0:00:07]}  Kg6 {[%clk 0:00:06]} 89. Kg3 {[%clk 0:00:07]}  Kg7 {[%clk 0:00:06]} 90. Rf2 {[%clk 0:00:07]}  Kg6 {[%clk 0:00:06]} 91. Be3 {[%clk 0:00:07]}  Kg7 {[%clk 0:00:06]} 92. Kh4 {[%clk 0:00:07]}  Kg6 {[%clk 0:00:06]} 93. Kg4 {[%clk 0:00:07]}  Bc4 {[%clk 0:00:07]} 94. Rxc2 {[%clk 0:00:07]} 1-0


[Site "https://www.chess.com"]

[Event "Titled Tuesday Blitz March 28 Late 2023"]
[White "Firouzja, Alireza"]
[Black "Kamsky, Gata"]
[WhiteFideId "12573981"]
[BlackFideId "2000024"]
[WhiteElo "2904"]
[BlackElo "2666"]
[Result "1/2-1/2"]
[Round "05"]
[TimeControl "180+2"]
[Date "2023.03.28"]
[WhiteClock "0:00:04"]
[BlackClock "0:00:07"]

1. e4 {[%clk 0:02:59]}  e5 {[%clk 0:02:59]} 2. Nf3 {[%clk 0:02:56]}  Nc6 {[%clk 0:03:00]} 3. Bb5 {[%clk 0:02:54]}  a6 {[%clk 0:03:00]} 4. Ba4 {[%clk 0:02:54]}  Nf6 {[%clk 0:03:00]} 5. O-O {[%clk 0:02:53]}  Be7 {[%clk 0:03:00]} 6. d3 {[%clk 0:02:52]}  d6 {[%clk 0:02:59]} 7. c3 {[%clk 0:02:51]}  O-O {[%clk 0:02:57]} 8. h3 {[%clk 0:02:51]}  b5 {[%clk 0:02:54]} 9. Bb3 {[%clk 0:02:49]}  Na5 {[%clk 0:02:54]} 10. Bc2 {[%clk 0:02:49]}  c5 {[%clk 0:02:54]} 11. d4 {[%clk 0:02:50]}  cxd4 {[%clk 0:02:47]} 12. cxd4 {[%clk 0:02:50]}  Nc6 {[%clk 0:02:45]} 13. Nc3 {[%clk 0:02:48]}  Nxd4 {[%clk 0:02:32]} 14. Nxd4 {[%clk 0:02:48]}  exd4 {[%clk 0:02:33]} 15. Qxd4 {[%clk 0:02:49]}  Bb7 {[%clk 0:02:30]} 16. Bb3 {[%clk 0:02:48]}  Nd7 {[%clk 0:02:22]} 17. Nd5 {[%clk 0:02:03]}  Nc5 {[%clk 0:02:15]} 18. Bc2 {[%clk 0:02:02]}  Rc8 {[%clk 0:02:04]} 19. Be3 {[%clk 0:01:42]}  Bxd5 {[%clk 0:01:38]} 20. Qxd5 {[%clk 0:01:35]}  Bf6 {[%clk 0:01:38]} 21. Rab1 {[%clk 0:01:32]}  Qe7 {[%clk 0:01:02]} 22. Rfd1 {[%clk 0:01:31]}  Rfd8 {[%clk 0:01:00]} 23. b4 {[%clk 0:01:26]}  Na4 {[%clk 0:00:47]} 24. Bxa4 {[%clk 0:01:25]}  bxa4 {[%clk 0:00:48]} 25. Rbc1 {[%clk 0:01:26]}  Rxc1 {[%clk 0:00:26]} 26. Rxc1 {[%clk 0:01:27]}  h6 {[%clk 0:00:22]} 27. Rc6 {[%clk 0:01:22]}  Rb8 {[%clk 0:00:13]} 28. Qc4 {[%clk 0:00:48]}  Qe6 {[%clk 0:00:11]} 29. Qxe6 {[%clk 0:00:39]}  fxe6 {[%clk 0:00:11]} 30. Bd2 {[%clk 0:00:40]}  d5 {[%clk 0:00:09]} 31. Rxa6 {[%clk 0:00:37]}  Rc8 {[%clk 0:00:08]} 32. exd5 {[%clk 0:00:31]}  exd5 {[%clk 0:00:08]} 33. Rxa4 {[%clk 0:00:24]}  Rc2 {[%clk 0:00:08]} 34. Bf4 {[%clk 0:00:25]}  d4 {[%clk 0:00:07]} 35. Ra6 {[%clk 0:00:18]}  Kf7 {[%clk 0:00:07]} 36. Ra7+ {[%clk 0:00:04]}  Ke6 {[%clk 0:00:07]} 37. Rc7 {[%clk 0:00:04]}  Rxa2 {[%clk 0:00:07]} 38. Rc1 {[%clk 0:00:01]}  Rb2 {[%clk 0:00:07]} 39. Rd1 {[%clk 0:00:02]}  Rxb4 {[%clk 0:00:06]} 40. Kf1 {[%clk 0:00:03]}  Kd5 {[%clk 0:00:06]} 41. Bd2 {[%clk 0:00:03]}  Rb2 {[%clk 0:00:06]} 42. Be1 {[%clk 0:00:04]}  Kc4 {[%clk 0:00:06]} 43. Rc1+ {[%clk 0:00:04]}  Kd5 {[%clk 0:00:06]} 44. Rd1 {[%clk 0:00:04]}  Kc4 {[%clk 0:00:07]} 45. Rc1+ {[%clk 0:00:05]}  Kd5 {[%clk 0:00:07]} 46. Rd1 {[%clk 0:00:04]} 1/2-1/2


[Site "https://www.chess.com"]

[Event "Titled Tuesday Blitz March 28 Late 2023"]
[White "Svane, Rasmus"]
[Black "Terry, Renato"]
[WhiteFideId "4657101"]
[BlackFideId "3803457"]
[WhiteElo "2597"]
[BlackElo "2579"]
[Result "1-0"]
[Round "05"]
[TimeControl "180+2"]
[Date "2023.03.28"]
[WhiteClock "0:00:38"]
[BlackClock "0:00:02"]

1. Nf3 {[%clk 0:03:00]}  b6 {[%clk 0:03:00]} 2. g3 {[%clk 0:03:00]}  Bb7 {[%clk 0:03:00]} 3. Bg2 {[%clk 0:03:01]}  c5 {[%clk 0:03:01]} 4. O-O {[%clk 0:02:59]}  g6 {[%clk 0:03:00]} 5. d4 {[%clk 0:02:53]}  cxd4 {[%clk 0:02:59]} 6. Qxd4 {[%clk 0:02:54]}  Nf6 {[%clk 0:02:59]} 7. c4 {[%clk 0:02:55]}  Bg7 {[%clk 0:02:58]} 8. Nc3 {[%clk 0:02:55]}  O-O {[%clk 0:02:57]} 9. Qh4 {[%clk 0:02:54]}  d6 {[%clk 0:02:52]} 10. Rd1 {[%clk 0:02:54]}  Nbd7 {[%clk 0:02:52]} 11. Be3 {[%clk 0:02:54]}  Rc8 {[%clk 0:02:49]} 12. Rac1 {[%clk 0:02:54]}  Re8 {[%clk 0:02:36]} 13. b3 {[%clk 0:02:53]}  a6 {[%clk 0:02:31]} 14. Bh3 {[%clk 0:02:53]}  Rc7 {[%clk 0:02:08]} 15. Bd4 {[%clk 0:02:44]}  Qb8 {[%clk 0:02:02]} 16. Nd5 {[%clk 0:01:54]}  Bxd5 {[%clk 0:01:25]} 17. cxd5 {[%clk 0:01:55]}  Rec8 {[%clk 0:01:24]} 18. Rxc7 {[%clk 0:01:50]}  Rxc7 {[%clk 0:01:20]} 19. a4 {[%clk 0:01:38]}  h6 {[%clk 0:01:17]} 20. Bxd7 {[%clk 0:01:32]}  Rxd7 {[%clk 0:01:06]} 21. Bxf6 {[%clk 0:01:33]}  exf6 {[%clk 0:01:04]} 22. Rc1 {[%clk 0:01:29]}  b5 {[%clk 0:00:35]} 23. Rc6 {[%clk 0:01:27]}  Qb7 {[%clk 0:00:26]} 24. axb5 {[%clk 0:01:20]}  Qxb5 {[%clk 0:00:21]} 25. Qc4 {[%clk 0:01:19]}  f5 {[%clk 0:00:13]} 26. Qxb5 {[%clk 0:01:12]}  axb5 {[%clk 0:00:14]} 27. Rb6 {[%clk 0:01:13]}  Kf8 {[%clk 0:00:14]} 28. Rxb5 {[%clk 0:01:12]}  Ra7 {[%clk 0:00:14]} 29. e3 {[%clk 0:01:04]}  Ra2 {[%clk 0:00:14]} 30. Kf1 {[%clk 0:01:00]}  Rb2 {[%clk 0:00:13]} 31. Rb7 {[%clk 0:01:00]}  Ke8 {[%clk 0:00:13]} 32. Ne1 {[%clk 0:00:59]}  Rb1 {[%clk 0:00:11]} 33. Ke2 {[%clk 0:00:59]}  Rb2+ {[%clk 0:00:12]} 34. Kf3 {[%clk 0:00:59]}  Rd2 {[%clk 0:00:05]} 35. h3 {[%clk 0:00:51]}  g5 {[%clk 0:00:06]} 36. g4 {[%clk 0:00:51]}  fxg4+ {[%clk 0:00:05]} 37. hxg4 {[%clk 0:00:52]}  Bc3 {[%clk 0:00:05]} 38. b4 {[%clk 0:00:48]}  Rxd5 {[%clk 0:00:05]} 39. Nc2 {[%clk 0:00:45]}  Rd2 {[%clk 0:00:05]} 40. Na3 {[%clk 0:00:45]}  d5 {[%clk 0:00:03]} 41. Nb1 {[%clk 0:00:40]}  Rc2 {[%clk 0:00:01]} 42. Rc7 {[%clk 0:00:40]}  d4 {[%clk 0:00:01]} 43. exd4 {[%clk 0:00:40]}  Rb2 {[%clk 0:00:01]} 44. Nxc3 {[%clk 0:00:39]}  Rxb4 {[%clk 0:00:02]} 45. Ke4 {[%clk 0:00:38]} 1-0


[Site "https://www.chess.com"]

[Event "Titled Tuesday Blitz March 28 Late 2023"]
[White "Sadhwani, Raunak"]
[Black "Movahed, Sina"]
[WhiteFideId "35093487"]
[BlackFideId "42520835"]
[WhiteElo "2631"]
[BlackElo "2225"]
[Result "1-0"]
[Round "05"]
[TimeControl "180+2"]
[Date "2023.03.28"]
[WhiteClock "0:00:11"]
[BlackClock "0:00:11"]

1. Nf3 {[%clk 0:02:59]}  Nf6 {[%clk 0:02:59]} 2. b3 {[%clk 0:02:59]}  g6 {[%clk 0:02:58]} 3. Bb2 {[%clk 0:03:00]}  Bg7 {[%clk 0:02:59]} 4. g3 {[%clk 0:03:00]}  O-O {[%clk 0:03:00]} 5. Bg2 {[%clk 0:03:01]}  c5 {[%clk 0:03:00]} 6. c4 {[%clk 0:03:00]}  d6 {[%clk 0:03:01]} 7. O-O {[%clk 0:02:59]}  e5 {[%clk 0:03:01]} 8. d3 {[%clk 0:03:00]}  Nc6 {[%clk 0:03:00]} 9. Nc3 {[%clk 0:02:59]}  h6 {[%clk 0:02:56]} 10. h3 {[%clk 0:02:57]}  Be6 {[%clk 0:02:56]} 11. Rc1 {[%clk 0:02:52]}  Rc8 {[%clk 0:02:56]} 12. Kh2 {[%clk 0:02:46]}  b6 {[%clk 0:02:56]} 13. e4 {[%clk 0:02:43]}  Nd4 {[%clk 0:02:41]} 14. Nxd4 {[%clk 0:02:40]}  cxd4 {[%clk 0:02:42]} 15. Ne2 {[%clk 0:02:39]}  b5 {[%clk 0:02:42]} 16. f4 {[%clk 0:02:36]}  bxc4 {[%clk 0:02:41]} 17. bxc4 {[%clk 0:02:36]}  Qa5 {[%clk 0:02:40]} 18. Qc2 {[%clk 0:02:08]}  h5 {[%clk 0:02:21]} 19. Rb1 {[%clk 0:01:40]}  Nd7 {[%clk 0:02:12]} 20. f5 {[%clk 0:01:33]}  gxf5 {[%clk 0:02:13]} 21. exf5 {[%clk 0:01:33]}  Bd5 {[%clk 0:02:14]} 22. Bc3 {[%clk 0:01:15]}  dxc3 {[%clk 0:02:08]} 23. Bxd5 {[%clk 0:01:16]}  Nf6 {[%clk 0:02:04]} 24. Bb7 {[%clk 0:01:15]}  Rc7 {[%clk 0:01:27]} 25. Nxc3 {[%clk 0:01:11]}  h4 {[%clk 0:01:27]} 26. g4 {[%clk 0:00:55]}  e4 {[%clk 0:01:17]} 27. Rb5 {[%clk 0:00:31]}  exd3 {[%clk 0:01:01]} 28. Qxd3 {[%clk 0:00:32]}  Qa3 {[%clk 0:01:01]} 29. g5 {[%clk 0:00:18]}  Nd7 {[%clk 0:01:01]} 30. f6 {[%clk 0:00:16]}  Nc5 {[%clk 0:00:53]} 31. Qf3 {[%clk 0:00:16]}  Nxb7 {[%clk 0:00:24]} 32. fxg7 {[%clk 0:00:16]}  Re8 {[%clk 0:00:24]} 33. Rxb7 {[%clk 0:00:13]}  Rxb7 {[%clk 0:00:14]} 34. Qxb7 {[%clk 0:00:14]}  Re2+ {[%clk 0:00:11]} 35. Nxe2 {[%clk 0:00:11]} 1-0


[Site "https://www.chess.com"]

[Event "Titled Tuesday Blitz March 28 Late 2023"]
[White "Mendonca, Leon Luke"]
[Black "Martinez Alcantara, Jose Eduardo"]
[WhiteFideId "35028561"]
[BlackFideId "3805662"]
[WhiteElo "2464"]
[BlackElo "2712"]
[Result "0-1"]
[Round "05"]
[TimeControl "180+2"]
[Date "2023.03.28"]
[WhiteClock "0:00:01"]
[BlackClock "0:00:13"]

1. e4 {[%clk 0:03:00]}  c5 {[%clk 0:03:00]} 2. Nf3 {[%clk 0:03:00]}  d6 {[%clk 0:03:00]} 3. Bb5+ {[%clk 0:02:57]}  Nd7 {[%clk 0:03:00]} 4. a4 {[%clk 0:02:57]}  a6 {[%clk 0:03:00]} 5. Be2 {[%clk 0:02:55]}  b6 {[%clk 0:03:00]} 6. d4 {[%clk 0:02:54]}  cxd4 {[%clk 0:03:01]} 7. Qxd4 {[%clk 0:02:54]}  Bb7 {[%clk 0:03:02]} 8. Nc3 {[%clk 0:02:53]}  Ngf6 {[%clk 0:03:02]} 9. O-O {[%clk 0:02:53]}  Rc8 {[%clk 0:02:58]} 10. Rd1 {[%clk 0:02:51]}  e5 {[%clk 0:02:54]} 11. Qe3 {[%clk 0:02:48]}  Be7 {[%clk 0:02:51]} 12. Nd2 {[%clk 0:02:43]}  Qc7 {[%clk 0:02:50]} 13. Nc4 {[%clk 0:02:13]}  O-O {[%clk 0:02:50]} 14. b3 {[%clk 0:02:07]}  Nc5 {[%clk 0:02:41]} 15. f3 {[%clk 0:01:55]}  Nxb3 {[%clk 0:02:07]} 16. cxb3 {[%clk 0:01:52]}  d5 {[%clk 0:02:07]} 17. Qf2 {[%clk 0:01:39]}  dxc4 {[%clk 0:02:00]} 18. Bxc4 {[%clk 0:01:40]}  Bb4 {[%clk 0:01:52]} 19. Ne2 {[%clk 0:01:29]}  Bxe4 {[%clk 0:01:45]} 20. fxe4 {[%clk 0:01:28]}  Bc5 {[%clk 0:01:45]} 21. Be3 {[%clk 0:01:29]}  Ng4 {[%clk 0:01:44]} 22. Bxc5 {[%clk 0:01:29]}  Nxf2 {[%clk 0:01:45]} 23. Bxf2 {[%clk 0:01:30]}  b5 {[%clk 0:01:36]} 24. axb5 {[%clk 0:01:29]}  axb5 {[%clk 0:01:37]} 25. Bd5 {[%clk 0:01:20]}  Qc2 {[%clk 0:01:37]} 26. Ng3 {[%clk 0:01:17]}  g6 {[%clk 0:01:38]} 27. h3 {[%clk 0:01:08]}  Rfd8 {[%clk 0:01:35]} 28. Nf1 {[%clk 0:01:07]}  h5 {[%clk 0:01:22]} 29. Bh4 {[%clk 0:00:58]}  Rd7 {[%clk 0:01:19]} 30. Ne3 {[%clk 0:00:48]}  Qe2 {[%clk 0:01:09]} 31. Re1 {[%clk 0:00:47]}  Qd2 {[%clk 0:01:06]} 32. Rad1 {[%clk 0:00:47]}  Qb4 {[%clk 0:01:05]} 33. Rf1 {[%clk 0:00:45]}  Kh7 {[%clk 0:00:58]} 34. Rf3 {[%clk 0:00:36]}  f5 {[%clk 0:00:49]} 35. Rdf1 {[%clk 0:00:19]}  f4 {[%clk 0:00:47]} 36. Nd1 {[%clk 0:00:17]}  Rc1 {[%clk 0:00:45]} 37. Rd3 {[%clk 0:00:13]}  Kh6 {[%clk 0:00:29]} 38. Bf6 {[%clk 0:00:09]}  Qd6 {[%clk 0:00:27]} 39. Bh4 {[%clk 0:00:06]}  Qb4 {[%clk 0:00:28]} 40. Bf2 {[%clk 0:00:06]}  Rc2 {[%clk 0:00:26]} 41. h4 {[%clk 0:00:06]}  Rdc7 {[%clk 0:00:21]} 42. Be1 {[%clk 0:00:05]}  Qe7 {[%clk 0:00:21]} 43. Bf2 {[%clk 0:00:03]}  Rc1 {[%clk 0:00:14]} 44. Rf3 {[%clk 0:00:01]}  R7c2 {[%clk 0:00:13]} 45. Rd3 {[%clk 0:00:01]}  Qb4 {[%clk 0:00:13]} 46. Rf3 {[%clk 0:00:01]}  Rd2 {[%clk 0:00:13]} 0-1


[Site "https://www.chess.com"]

[Event "Titled Tuesday Blitz March 28 Late 2023"]
[White "Drygalov, Sergey"]
[Black "Naroditsky, Daniel"]
[WhiteFideId "24171743"]
[BlackFideId "2026961"]
[WhiteElo "2533"]
[BlackElo "2633"]
[Result "1/2-1/2"]
[Round "05"]
[TimeControl "180+2"]
[Date "2023.03.28"]
[WhiteClock "0:00:14"]
[BlackClock "0:00:36"]

1. e4 {[%clk 0:02:59]}  d6 {[%clk 0:02:52]} 2. d4 {[%clk 0:02:58]}  Nf6 {[%clk 0:02:52]} 3. Nc3 {[%clk 0:02:59]}  Nc6 {[%clk 0:02:53]} 4. d5 {[%clk 0:02:57]}  Nb8 {[%clk 0:02:52]} 5. h3 {[%clk 0:02:56]}  g6 {[%clk 0:02:52]} 6. Nf3 {[%clk 0:02:54]}  Bg7 {[%clk 0:02:53]} 7. Bd3 {[%clk 0:02:54]}  c6 {[%clk 0:02:53]} 8. O-O {[%clk 0:02:53]}  O-O {[%clk 0:02:53]} 9. Re1 {[%clk 0:02:52]}  b5 {[%clk 0:02:52]} 10. a3 {[%clk 0:02:50]}  a6 {[%clk 0:02:51]} 11. Bg5 {[%clk 0:02:48]}  Bb7 {[%clk 0:02:48]} 12. Qd2 {[%clk 0:02:44]}  Re8 {[%clk 0:02:38]} 13. Bf1 {[%clk 0:02:38]}  Nbd7 {[%clk 0:02:37]} 14. dxc6 {[%clk 0:01:48]}  Bxc6 {[%clk 0:02:36]} 15. a4 {[%clk 0:01:48]}  Nc5 {[%clk 0:02:17]} 16. Bxf6 {[%clk 0:01:12]}  Bxf6 {[%clk 0:02:16]} 17. Nd4 {[%clk 0:01:13]}  Bxd4 {[%clk 0:02:00]} 18. Qxd4 {[%clk 0:01:14]}  bxa4 {[%clk 0:02:01]} 19. e5 {[%clk 0:01:04]}  Ne6 {[%clk 0:01:51]} 20. Qc4 {[%clk 0:00:57]}  Bb7 {[%clk 0:01:51]} 21. Rad1 {[%clk 0:00:52]}  a3 {[%clk 0:01:47]} 22. bxa3 {[%clk 0:00:47]}  Qa5 {[%clk 0:01:41]} 23. exd6 {[%clk 0:00:39]}  exd6 {[%clk 0:01:28]} 24. Qb4 {[%clk 0:00:39]}  Qxb4 {[%clk 0:01:21]} 25. axb4 {[%clk 0:00:40]}  Rac8 {[%clk 0:01:17]} 26. Re3 {[%clk 0:00:39]}  Red8 {[%clk 0:01:17]} 27. Rd2 {[%clk 0:00:28]}  d5 {[%clk 0:01:08]} 28. Na4 {[%clk 0:00:28]}  d4 {[%clk 0:01:07]} 29. Re5 {[%clk 0:00:28]}  Rd6 {[%clk 0:01:03]} 30. Nc5 {[%clk 0:00:28]}  Nxc5 {[%clk 0:00:58]} 31. bxc5 {[%clk 0:00:29]}  Rdc6 {[%clk 0:00:57]} 32. Rxd4 {[%clk 0:00:19]}  Rxc5 {[%clk 0:00:57]} 33. Rxc5 {[%clk 0:00:20]}  Rxc5 {[%clk 0:00:58]} 34. Rd7 {[%clk 0:00:20]}  Bc8 {[%clk 0:00:46]} 35. Ra7 {[%clk 0:00:21]}  a5 {[%clk 0:00:46]} 36. Bd3 {[%clk 0:00:20]}  Bf5 {[%clk 0:00:36]} 37. Bxf5 {[%clk 0:00:18]}  gxf5 {[%clk 0:00:37]} 38. g3 {[%clk 0:00:13]}  Kg7 {[%clk 0:00:36]} 39. Kg2 {[%clk 0:00:14]} 1/2-1/2


[Site "https://www.chess.com"]

[Event "Titled Tuesday Blitz March 28 Late 2023"]
[White "Lazavik, Denis"]
[Black "Rustemov, Alexander"]
[WhiteFideId "13515110"]
[BlackFideId "4119002"]
[WhiteElo "2560"]
[BlackElo "2868"]
[Result "1/2-1/2"]
[Round "05"]
[TimeControl "180+2"]
[Date "2023.03.28"]
[WhiteClock "0:00:04"]
[BlackClock "0:00:13"]

1. d4 {[%clk 0:03:00]}  d5 {[%clk 0:02:58]} 2. c4 {[%clk 0:03:00]}  c6 {[%clk 0:02:57]} 3. Nf3 {[%clk 0:02:58]}  Nf6 {[%clk 0:02:55]} 4. Qc2 {[%clk 0:02:59]}  e6 {[%clk 0:02:52]} 5. e3 {[%clk 0:02:58]}  Nbd7 {[%clk 0:02:48]} 6. b3 {[%clk 0:02:55]}  Ne4 {[%clk 0:02:39]} 7. Be2 {[%clk 0:02:53]}  f5 {[%clk 0:02:38]} 8. O-O {[%clk 0:02:53]}  Qf6 {[%clk 0:02:20]} 9. Ba3 {[%clk 0:02:49]}  Bxa3 {[%clk 0:02:18]} 10. Nxa3 {[%clk 0:02:50]}  O-O {[%clk 0:02:16]} 11. Qb2 {[%clk 0:02:46]}  Qh6 {[%clk 0:02:04]} 12. Nc2 {[%clk 0:02:44]}  Rf6 {[%clk 0:01:59]} 13. Nce1 {[%clk 0:02:39]}  g5 {[%clk 0:01:53]} 14. Nd3 {[%clk 0:02:32]}  g4 {[%clk 0:01:50]} 15. Nfe5 {[%clk 0:02:33]}  Ng5 {[%clk 0:01:44]} 16. Nf4 {[%clk 0:02:16]}  Qh4 {[%clk 0:01:38]} 17. g3 {[%clk 0:02:06]}  Nh3+ {[%clk 0:01:34]} 18. Kh1 {[%clk 0:02:01]}  Qh6 {[%clk 0:01:28]} 19. f3 {[%clk 0:01:56]}  gxf3 {[%clk 0:01:18]} 20. Bxf3 {[%clk 0:01:56]}  Nxf4 {[%clk 0:01:04]} 21. gxf4 {[%clk 0:01:41]}  Nxe5 {[%clk 0:01:04]} 22. dxe5 {[%clk 0:01:38]}  Rg6 {[%clk 0:01:05]} 23. Qa3 {[%clk 0:01:00]}  Bd7 {[%clk 0:00:59]} 24. Qd6 {[%clk 0:00:59]}  Be8 {[%clk 0:00:56]} 25. Rg1 {[%clk 0:00:53]}  Bf7 {[%clk 0:00:51]} 26. cxd5 {[%clk 0:00:49]}  cxd5 {[%clk 0:00:50]} 27. Qc5 {[%clk 0:00:31]}  Qh3 {[%clk 0:00:47]} 28. Rxg6+ {[%clk 0:00:17]}  hxg6 {[%clk 0:00:46]} 29. Bg2 {[%clk 0:00:17]}  Qh4 {[%clk 0:00:45]} 30. Qc3 {[%clk 0:00:08]}  Qf2 {[%clk 0:00:43]} 31. a4 {[%clk 0:00:05]}  Kg7 {[%clk 0:00:39]} 32. Rf1 {[%clk 0:00:05]}  Qe2 {[%clk 0:00:38]} 33. Qe1 {[%clk 0:00:04]}  Qd3 {[%clk 0:00:37]} 34. b4 {[%clk 0:00:04]}  Rc8 {[%clk 0:00:36]} 35. Rg1 {[%clk 0:00:02]}  Rc3 {[%clk 0:00:35]} 36. Qh4 {[%clk 0:00:02]}  Qxe3 {[%clk 0:00:32]} 37. Qf6+ {[%clk 0:00:03]}  Kf8 {[%clk 0:00:32]} 38. Qd8+ {[%clk 0:00:03]}  Be8 {[%clk 0:00:31]} 39. Qf6+ {[%clk 0:00:03]}  Bf7 {[%clk 0:00:20]} 40. Qd8+ {[%clk 0:00:03]}  Be8 {[%clk 0:00:20]} 41. Qf6+ {[%clk 0:00:04]}  Bf7 {[%clk 0:00:13]} 1/2-1/2


[Site "https://www.chess.com"]